Cogmind - Beta 13 @@@ ROGUE MODE // 2024.03.06 @ 22:34:22 Player: SirMrDrProf Result: Destroyed by as-49416 with Assembled Blade Performance ------------- Evolutions (1) 500 Regions Visited (4) 800 Robots Destroyed (38) 190 Value Destroyed (748) 748 Prototype IDs (4) 80 Alien Tech Used (0) 0 Bonus (0) 0 TOTAL SCORE: 2318 Bonus ------- None Cogmind --------- Core Integrity 0/400 Matter 132/300 Energy 280/280 System Corruption 0% Temperature Hot (206) Movement Core (750) Ox14 Location -9/Mines Parts ------- > --- POWER (1) -------- Heavy Ion Engine > --- PROPULSION (3) --- (None) > --- UTILITY (3) ------ Medium Storage Unit Hardened Heavy Armor Plating > --- WEAPON (2) ------- Heavy Particle Gun Autogun > --- INVENTORY (10) --- Airjet Improved Utility Shielding Improved EM Shotgun Improved EM Shotgun Mining Laser Peak State ------------ > --- POWER ------------ Heavy Ion Engine > --- PROPULSION ------- Light Treads Carbon-fiber Leg Carbon-fiber Leg > --- UTILITY ---------- Medium Storage Unit Structural Scanner Experimental Sensor Array > --- WEAPON ----------- Improved EM Shotgun Improved EM Shotgun > --- INVENTORY -------- Heavy Ion Engine Airjet Improved Heat Sink Signal Interpreter Improved Utility Shielding Heavy Particle Gun Autogun Minigun [Rating: 29] Favorites ----------- Power Heavy Ion Engine Engine Heavy Ion Engine Power Core Light Nuclear Core Propulsion Carbon-fiber Leg Treads Light Treads Leg Carbon-fiber Leg Utility Improved Terrain Scanner Device Improved Terrain Scanner Storage Small Storage Unit Processor Signal Interpreter Protection Hardened Heavy Armor Plating Weapon Minigun Energy Gun Heavy Particle Gun Energy Cannon Heavy Particle Cannon Ballistic Gun Minigun Special Weapon Mining Laser Build | -11 -10 -10 -9 -9 ------- Run | Yrd Mat Min Mat Min Slots Evolved 2 | . . . 2 . Power . | . . . . . Propulsion 1 | . . . 1 . Utility 1 | . . . 1 . Weapon . | . . . . . Parts Attached 44 | 6 1 9 13 15 Power 5 | 1 . 2 1 1 Engine 4 | 1 . 1 1 1 Core 1 | . . 1 . . Reactor . | . . . . . Propulsion 7 | 2 . 2 1 2 Treads 3 | 2 . . 1 . Leg 4 | . . 2 . 2 Wheel . | . . . . . Hover . | . . . . . Flight . | . . . . . Utility 15 | 1 1 3 3 7 Device 10 | . 1 3 2 4 Storage 2 | 1 . . 1 . Processor 1 | . . . . 1 Hackware . | . . . . . Protection 2 | . . . . 2 Artifact . | . . . . . Weapon 17 | 2 . 2 8 5 Energy Gun 7 | 1 . . 4 2 Energy Cannon 2 | . . 1 1 . Ballistic Gun 7 | 1 . 1 3 2 Ballistic Cannon . | . . . . . Launcher . | . . . . . Special Weapon 1 | . . . . 1 Impact Weapon . | . . . . . Slashing Weapon . | . . . . . Piercing Weapon . | . . . . . Special Melee Weapon . | . . . . . Unidentified Prototypes 4 | . . . 3 1 Parts Lost 8 | . . . . 8 Power 1 | . . . . 1 Propulsion 4 | . . . . 4 Utility 2 | . . . . 2 Weapon 1 | . . . . 1 Highest Loss Streak 4 | . . . . 4 To Critical Strikes . | . . . . . Average Slot Usage (%) 94 | . 85 100 88 94 Engine 9 | . 14 7 4 10 Core 2 | . . 6 6 . Treads 9 | . 28 11 1 3 Leg 19 | . . 16 22 27 Device 15 | . . 14 21 18 Storage 12 | . 14 14 11 11 Energy Gun 8 | . 14 1 4 14 Energy Cannon 5 | . . 12 8 . Ballistic Gun 10 | . 14 13 8 7 Naked Turns . | . . . . . Heaviest Build 36 | 14 15 24 26 36 Greatest Support 48 | 40 40 40 30 48 Greatest Overweight (x) 1 | . . . . 1 Average Overweight (x) . | . . . . . Largest Inventory Capacity 10 | 8 8 8 10 10 Average Capacity 8 | 6 8 8 8 10 Most Carried 10 | 1 1 8 8 10 Average Carried 6 | . 1 6 7 8 Final Capacity 10 | 8 8 8 10 10 Final Carried 8 | 1 1 8 8 5 Class Distribution -------------------- 53% | Mutant 46% | Scavenger-Mutant Dominant Class ---------------- Mutant | -10/Materials Mutant | -10/Mines Scavenger-Mutant | -9/Materials Scavenger-Mutant | -9/Mines Resources | -11 -10 -10 -9 -9 ----------- Run | Yrd Mat Min Mat Min Matter Collected 754 | 244 128 170 166 46 Remotely . | . . . . . Salvage Created 1210 | . 378 193 335 304 Parts 86 | . 26 12 20 28 Haulers Intercepted 3 | . 1 . 2 . Recyclers Shooed 2 | . 2 . . . Parts Field Recycled . | . . . . . Retrieved Matter . | . . . . . Parts Self-Destructed . | . . . . . Prevented . | . . . . . Kills | -11 -10 -10 -9 -9 ------- Run | Yrd Mat Min Mat Min Combat Hostiles Destroyed 30 | . 7 9 3 11 Guns 22 | . 7 3 1 11 Cannons 8 | . . 6 2 . Classes Destroyed 10 | . 6 . 1 3 Tunneler 4 | . . . . 4 Hauler 3 | . 1 . 2 . Recycler 2 | . 1 . 1 . Operator 1 | . 1 . . . Watcher 3 | . 2 . 1 . Swarmer 13 | . 3 7 . 3 Grunt 9 | . 4 2 1 2 Sentry 2 | . . . 2 . Demolisher 1 | . . . . 1 Assembled 5 | . . . . 5 Best Kill Streak 6 | . 5 3 2 6 Combat Bots Only 3 | . 3 3 1 3 Max Kills in Single Turn 2 | . 1 1 1 2 Gunslinging 1 | . . . . 1 Exploded . | . . . . . Melee . | . . . . . Uniques/NPCs Destroyed . | . . . . . Combat | -11 -10 -10 -9 -9 -------- Run | Yrd Mat Min Mat Min Hostile Shots Fired 145 | . 41 24 9 71 Missed 37 | . 15 5 3 14 Damage Taken 1994 | 2 296 215 91 1390 Core 577 | . 80 69 30 398 Absorbed by Shields . | . . . . . Core Remaining (%) 70 | 100 . 40 . . Volleys Fired 126 | . 35 35 15 41 Largest 2 | . 2 2 2 2 Hottest 110 | . 70 100 110 100 Shots Fired 227 | . 70 52 27 78 Gun 182 | . 70 20 17 75 Cannon 42 | . . 32 10 . Launcher . | . . . . . Special 3 | . . . . 3 Kinetic 90 | . 35 20 9 26 Thermal 114 | . 35 32 16 31 Explosive . | . . . . . Electromagnetic 23 | . . . 2 21 Robot Hit Streak 16 | . 5 5 16 10 Robot Miss Streak 5 | . 3 2 2 5 Penetration Max . | . . . . . Secondary Targets 3 | . . . . 3 Max Gunslinging Chain 1 | . . . . 1 Shots Hit Robots 119 | . 35 22 19 43 Core Hits 62 | . 19 11 10 22 Critical Kills . | . . . . . Critical Parts Destroyed . | . . . . . Critical Strikes . | . . . . . Melee Attacks . | . . . . . Impact . | . . . . . Slashing . | . . . . . Piercing . | . . . . . Sneak Attacks . | . . . . . Combat Hostiles . | . . . . . Follow-up Attacks . | . . . . . Damage Inflicted 2068 | 5 457 468 380 758 Guns 1558 | . 457 163 180 758 Cannons 500 | . . 300 200 . Explosions . | . . . . . Melee . | . . . . . Ramming 10 | 5 . 5 . . Kinetic 779 | . 249 163 103 264 Thermal 1023 | . 208 300 254 261 Explosive . | . . . . . Electromagnetic 256 | . . . 23 233 Impact . | . . . . . Slashing . | . . . . . Piercing . | . . . . . Highest Corruption . | . . . . . Average Corruption . | . . . . . Corruption Purged . | . . . . . Corruption Blocked . | . . . . . Overload Shots . | . . . . . Overflow Damage 5 | . . 5 . . Projectiles 5 | . . 5 . . Explosions . | . . . . . Melee . | . . . . . Knockbacks . | . . . . . Impact . | . . . . . Kinetic . | . . . . . Secondary . | . . . . . Self-Inflicted Damage 2 | 2 . . . . Shots . | . . . . . Rammed 1 | 1 . . . . Targets Rammed 3 | 1 . 2 . . Kicked 2 | . . 2 . . Crushed . | . . . . . Highest Temperature 350 | . 93 350 55 293 Average Temperature 74 | . 24 122 19 78 Received Heat Transfer 305 | . 138 72 54 41 Effects 2 | . . 2 . . Shutdowns 1 | . . 1 . . Energy Bleed 1 | . . 1 . . Siege Activations . | . . . . . Robots Corrupted . | . . . . . Combat Hostiles . | . . . . . Parts Fried 2 | . . . . 2 Impact Corruptions . | . . . . . Robots Melted . | . . . . . Combat Hostiles . | . . . . . Parts Melted 5 | . 1 4 . . Heat Transferred 1998 | . 629 444 407 518 Parts Sabotaged . | . . . . . Parts Stolen . | . . . . . Parts Stripped . | . . . . . Power Chain Reactions . | . . . . . Alert | -11 -10 -10 -9 -9 ------- Run | Yrd Mat Min Mat Min Peak Influence 209 | . 184 196 205 209 Initial 79 | . . 43 . 79 Average 58 | . 112 33 99 56 Maximum Alert Level 1 | . . . 1 1 Low Security (%) 92 | 100 100 100 87 84 Level 1 7 | . . . 12 15 Level 2 . | . . . . . Level 3 . | . . . . . Level 4 . | . . . . . Level 5 . | . . . . . High Security . | . . . . . Max Security . | . . . . . Squads Dispatched 3 | . 1 1 1 . Investigation 1 | . . 1 . . Extermination . | . . . . . Reinforcement 2 | . 1 . 1 . Assault . | . . . . . Garrison . | . . . . . Intercept . | . . . . . Searches Triggered . | . . . . . Construction Impeded . | . . . . . Haulers Reinforced . | . . . . . Active Scanning Responses . | . . . . . Cargo Convoy Interrupts . | . . . . . Stealth | -11 -10 -10 -9 -9 --------- Run | Yrd Mat Min Mat Min Distress Signals . | . . . . . Communications Jammed . | . . . . . Distress Signals . | . . . . . Times Spotted 49 | . 14 12 6 17 Peak Tracking Total 4 | . 4 3 2 4 Tactical Retreats 3 | . 2 1 . . Traps | -11 -10 -10 -9 -9 ------- Run | Yrd Mat Min Mat Min Traps Triggered 1 | . . . . 1 Indirectly . | . . . . . Trap Hack Attempts . | . . . . . Triggered . | . . . . . Disarmed . | . . . . . Reprogrammed . | . . . . . Reused . | . . . . . Traps Extracted . | . . . . . Installed . | . . . . . Triggered . | . . . . . Machines | -11 -10 -10 -9 -9 ---------- Run | Yrd Mat Min Mat Min Machines Disabled 3 | . 2 . 1 . Max in Single Turn 1 | . 1 . 1 . Machines Repaired . | . . . . . Machines Dismantled . | . . . . . Machines Sabotaged . | . . . . . Overloaded Fab Kills . | . . . . . Hacking | -11 -10 -10 -9 -9 --------- Run | Yrd Mat Min Mat Min Machines Accessed 6 | . 2 1 3 . Terminals 5 | . 2 . 3 . Fabricators . | . . . . . Repair Stations . | . . . . . Recycling Units . | . . . . . Scanalyzers . | . . . . . Garrison Access . | . . . . . Total Hacks 11 | . 4 1 6 . Successful 3 | . 1 1 1 . Failed 8 | . 3 . 5 . Catastrophic 3 | . 1 . 2 . Database Lockouts . | . . . . . Manual 7 | . 2 . 5 . Terminals 10 | . 4 . 6 . Fabricators . | . . . . . Repair Stations . | . . . . . Recycling Units . | . . . . . Scanalyzers . | . . . . . Garrison Access . | . . . . . Terminal Hacks 3 | . 1 1 1 . Open Door 1 | . . 1 . . Branch Access Points 1 | . . . 1 . Locate Traps 1 | . 1 . . . Fabricator Hacks . | . . . . . Repair Station Hacks . | . . . . . Recycling Unit Hacks . | . . . . . Scanalyzer . | . . . . . Garrison Access Hacks . | . . . . . Unauthorized Hacks . | . . . . . Terminals . | . . . . . Fabricators . | . . . . . Repair Stations . | . . . . . Recycling Units . | . . . . . Scanalyzers . | . . . . . Garrison Access . | . . . . . Data Cores Recovered . | . . . . . Used . | . . . . . Hacking Detections 4 | . 2 . 2 . Full Trace Events . | . . . . . Feedback Events . | . . . . . Feedback Blocked . | . . . . . Robot Schematics Acquired . | . . . . . Robots Built . | . . . . . Authchips . | . . . . . Time . | . . . . . Total Robot Build Rating . | . . . . . Part Schematics Acquired . | . . . . . Parts Built . | . . . . . Authchips . | . . . . . Time . | . . . . . Total Part Build Rating . | . . . . . Parts Repaired . | . . . . . Time . | . . . . . Parts Recycled . | . . . . . Recycled Matter . | . . . . . Retrieved Matter . | . . . . . Retrieved Components . | . . . . . Parts Scanalyzed . | . . . . . Part Schematics Acquired . | . . . . . Parts Damaged . | . . . . . Bothacking | -11 -10 -10 -9 -9 ------------ Run | Yrd Mat Min Mat Min Used RIF Installer . | . . . . . Robots Hacked . | . . . . . Non-combat . | . . . . . Combat . | . . . . . Robot Hacks Applied . | . . . . . Relay Couplers Released . | . . . . . Fabnet Peak Effective % . | . . . . . Robots Rewired . | . . . . . Allies Hacked . | . . . . . Hacks Repelled . | . . . . . Allies | -11 -10 -10 -9 -9 -------- Run | Yrd Mat Min Mat Min Total Allies 5 | . . 1 . 4 Largest Group 3 | . . 1 . 3 Highest-Rated Group 40 | . . 31 . 40 Highest-Rated Ally 31 | . . 31 . 31 Total Orders . | . . . . . Ally Attacks 11 | . . . . 11 Total Damage 64 | . . . . 64 Kills . | . . . . . Allies Corrupted . | . . . . . Allies Melted . | . . . . . Intel | -11 -10 -10 -9 -9 ------- Run | Yrd Mat Min Mat Min Robot Analysis Total . | . . . . . Derelict Logs Recovered 4 | . . 3 . 1 Drone Launches . | . . . . . Drone Recoveries . | . . . . . Exploration | -11 -10 -10 -9 -9 ------------- Run | Yrd Mat Min Mat Min Turns Passed 3817 | 92 463 1295 373 1594 Spaces Moved 1872 | 52 197 687 206 730 Core 15 | 15 . . . . Treads 504 | 37 197 270 . . Legs 1353 | . . 417 206 730 Wheels . | . . . . . Hover . | . . . . . Flight . | . . . . . Fastest Speed 50 | 50 160 120 120 120 Average Speed 130 | 128 160 135 120 121 Slowest Speed 190 | 160 160 160 120 190 Overloaded Moves . | . . . . . Propulsion Burnouts . | . . . . . Robots Hopped . | . . . . . Cave-ins Triggered . | . . . . . Exploration Rate (%) 50 | 5 31 99 18 99 Regions Visited 4 Branch Regions 2 Pre-discovered Areas 4 | . . 3 . 1 Known Exits Taken 1 | . . . 1 . Unknown Exits Taken 3 | 1 1 1 . . Scrap Searched 3 | . . 1 . 2 Spaces Dug 17 | . . 13 1 3 Terrain Destroyed 24 | . . 20 1 3 Melee . | . . . . . Projectile 24 | . . 20 1 3 AOE . | . . . . . Terrain Rammed . | . . . . . Walls Destroyed . | . . . . . Machines Disabled . | . . . . . Actions | -11 -10 -10 -9 -9 --------- Run | Yrd Mat Min Mat Min Total 3007 | 74 274 998 307 1354 Wait 924 | 15 42 254 56 557 Move 1868 | 51 196 686 205 730 Hop . | . . . . . Pick Up 19 | 1 . 8 5 5 Fast Attach 20 | 6 1 3 8 2 Attach 7 | . . . 1 6 Detach 2 | . . . 1 1 Swap 17 | . . 6 4 7 Drop 21 | . . 4 12 5 Fire 126 | . 35 35 15 41 Melee . | . . . . . Ram 1 | 1 . . . . Kick 2 | . . 2 . . Crush . | . . . . . Escape Stasis . | . . . . . Rewire . | . . . . . Trap . | . . . . . Miscellaneous . | . . . . . Route ------- -11/Scrapyard -10/Materials (discovered 3 exits: *Mat / *Min x2) -10/Mines (discovered 2 exits: *Mat x2) -9/Materials -9/Mines (discovered 3 exits: [*Mat x2] / [*Exi]) History --------- Turn | Location | Event 22 | -11/Scrapyard | Discovered new exit (range 16) 93 | -11/Scrapyard | Entered Materials 140 | -10/Materials | Discovered new exit (range 10) 303 | -10/Materials | Build established: Mutant 395 | -10/Materials | Discovered new exit (range 3) 486 | -10/Materials | Discovered new exit (range 7) 556 | -10/Materials | Entered Mines 589 | -10/Mines | Learned location of Mines (-9) 616 | -10/Mines | Learned location of Zion (-6) 655 | -10/Mines | Met a Derelict shopkeep closing up shop 749 | -10/Mines | Escorted by a lone wolf Derelict 769 | -10/Mines | Learned location of Storage (-8) 842 | -10/Mines | Discovered new exit (range 11) 1254 | -10/Mines | Discovered new exit (range 8) 1274 | -10/Mines | Core integrity fell below 50% 1851 | -10/Mines | Entered Materials 1851 | -9/Materials | Evolved 2 slots: Propulsion x1, Utility x1 2060 | -9/Materials | Identified exit to Mines 2224 | -9/Materials | Entered Mines 2237 | -9/Mines | Met a Derelict bent on vengeance 2413 | -9/Mines | Deemed a non-threat by the Exiles lab entrance 2413 | -9/Mines | Discovered new exit (range 6) 2488 | -9/Mines | Received a Mining Laser from a helpful Derelict 2494 | -9/Mines | Build established: Scavenger-Mutant 2603 | -9/Mines | Found a damaged Exp. Sensor Array with a note attached 2606 | -9/Mines | Found Prototype Device 2607 | -9/Mines | Identified Exp. Sensor Array 2738 | -9/Mines | Met a Derelict who couldn't figure out how to use a Trap Extractor 2782 | -9/Mines | Discovered new exit (range 3) 2825 | -9/Mines | Discovered new exit (range 12) 3369 | -9/Mines | Assisted by bots powering up and referring to "LRC-V3" 3391 | -9/Mines | Assembled infested the area 3421 | -9/Mines | Core integrity fell below 50% 3441 | -9/Mines | Lost 3 allies 3455 | -9/Mines | Lost 4 parts (1p1n2u) 3802 | -9/Mines | Core integrity fell below 20% 3818 | -9/Mines | Destroyed by as-49416 with Assembled Blade Last Messages --------------- 03491_ Dropped Aluminum Leg. 03491_ K-01 Serf collects debris. 03539_ U-05 Engineer lays Concrete. 03550_ The unstable cave ceiling collapses. 03551_ U-05 Engineer lays Concrete. 03728_ Carbon-fiber Leg destroyed. 03733_ as-62568 destroyed. 03734_ Aluminum Leg destroyed. 03745_ as-09988 destroyed. 03763_ as-88648 destroyed. 03765_ Acquired 20 matter. 03767_ Acquired 11 matter. 03796_ Carbon-fiber Leg destroyed. 03797_ as-27726 destroyed. 03797_ Switching to secondary target: as-01738. 03805_ Destroyed Asb. Hover Unit. 03808_ Minigun destroyed. 03808_ Dropped Structural Scanner. 03810_ as-30428 destroyed. 03810_ Switching to secondary target: as-49416. Map ----- +----------------------------------------------------+ | ## ###??## ####????## ####### ##????? | | ###???## ######### ######## =##????? | | ###???## ######## ###??#### *=##????? | | ##???## ##???####%*##????? | | ##???### #########=%###???? | | ######## ######### ########=%[###???? | | ######## ######### #### = ##???? | | ### ## ###????### ### ## ##???? | | ### ###?###### !| #### ###???? | | #### #### !*%############???? | | ### ### ### =%=############????? | | ###### ######?????????????? | | """ ####### ### ##########?????????? | | """ ###??## ### ###########????????? | | ## ## """ ##???## #### #### ###????????? | | ######## ###???## #### ### ##????????? | | ############# ###???## #### ### ###???????? | | ####??####### #####?## #### ### ###???????? | | ######??##### ######## #### #### ##???????? | | # ##########== ##### ### ####### ###??????? | | ###### ####%#### ## ######## ###??????? | | #### ### #### #!=######## ##??????? | | """ ## ### #### !%######## ##??????? | | """ #### ###* ==! #### ###??????? | | """ #### ##|=! a% ! ### ###??????? | | %!=[==!=%=%!@ % ### ########?? | | # !=a!!%*%!a=%## #### ########? | | ## ## ## ######* #### ##### ###? | | ######### ####### #### % ### | | ## ######### ##?##### ##### % ### | | ## ###????## ###??######### ##### %= ## | | # ###????## ####??#####?## ###### ## # | | ###???## ##?????????### % ##### ###### # | | ###???### ##????#????### | ##?###" ######### | | ##???### ##?????????### ! ##?### ######### | | ##????## ##????????### =%###?### ##??? | | ###????## ##???????### ###?## # ##??? | | ########??#?## ##????#???## ##### # ##??? | | ############## ##??????##### ##### ## ##??? | | #?????######## ##????????##### == ######## ###?? | | ##????### ### ##?????????#### % ######## ##### | | #????### ### ###?????##???## ### ##?### #### | | #?#??### ### ####?##??????## ### ##### ## | | #?????## ## ###?????????## =### #### ## | | #?????## ###??#?????## %## ### ## | | #?????### #####?????### !! ### | | #?????##### !####???######### #### | | ???#???###### ! ####?########## ###? | | #?#??????##### ##?#### ### ##?? | | ?#???##????#### ###### ###?? | +----------------------------------------------------+ Best States ------------- Heat Dissipation 42 Energy Generation 14 Energy Capacity 280 Matter Stores 300 Matter Capacity 300 Sight Range 16 Terrain Scan Range 16 Terrain Scan Density 10 Armor Coverage 600 Evasion (%) 55 Recoil Reduction 2 Item Schematics ----------------- None Robot Schematics ------------------ None Fabricated ------------ Nothing Alien Tech Used ----------------- None Achievements -------------- None Challenges ------------ None Game ------ Seed AlertFlightChip Manual? 0 Play Time 00:30:11 Cumulative 335.7 hours Start 2024.03.06 @ 22:03:44 End 2024.03.06 @ 22:34:22 Sessions 4 Manual Loads 0 Difficulty Rogue Special Mode None Game No. 185 Rogue 185 Adventurer 0 Explorer 0 Win Type - Total 25 Types 9/7/4/1/1/0/3/0/0 Lore% 80 Gallery% 81 Achievement% 80 Wizard Run 0 Options --------- Layout 0 ASCII 0 Keyboard 0 Movement Numpad Keybinds 0 Fullscreen 1 Font 18/SmallcapsGlow Map View 76x50 Zoom Use 0% Tactical HUD 1 Map Filters NONE Filters NONE Steam 1 RUN: 029ece3a-2931-4d65-abc1-86581de9f7f0